{"text_format":"1","workbook":"xlsx","n_sheets":4,"sheets":["IDENTIFICACION PELIGRO","CARACTERIZACION","SIP","SIPC"],"not_rendered":{"charts":0,"images":2,"macros":1,"external_links":0,"defined_names":1,"comments":0,"pivot_tables":0},"unopened":[],"bounds":{"document_bytes":16777216,"sheet_cells":100000,"rows_first":2000,"rows_last":500,"rows_between":2000,"halvings":0,"cell_chars":16384,"cell_head_chars":4096},"cells_cut":0,"cells_raw":0,"read":"whole","date_system":"1900"}

{"sheet":"IDENTIFICACION PELIGRO","index":0,"n_rows":33,"n_cols":10,"rows_kept":33,"cut":false,"hidden":false,"merged":[[31,7,31,9],[32,7,32,9],[11,3,11,6],[29,2,29,10],[28,1,28,11],[27,1,27,11],[7,8,7,11],[9,8,9,11],[11,9,11,11],[13,3,13,11],[15,1,15,11]]}
[null,"PROTOCOLO CITOSTÁTICOS"]
[null,"IDENTIFICACIÓN DEL PELIGRO DE EXPOSICIÓN A AGENTES CITOTÓXICOS"]
[]
[null,"INFORMACIÓN EMPRESA"]
[]
[null,"Razón Social Empleador",null,null,null,null,null,"RUT",null,"N° adherente"]
[]
[null,"Nombre centro de trabajo",null,null,null,null,null,"Región"]
[]
[null,"Dirección centro de trabajo",null,null,null,null,null,"Comuna"]
[]
[null,"Nombre del Experto ACHS",null,null,null,null,null,"Agencia"]
[]
[null,"Fecha evaluación"]
[]
[null,"SELECCIONE LAS ALTERNATIVAS QUE CORRESPONDE A SU CASO"]
[null,null,null,null,null,null,null,"SI","NO"]
[null,"En el centro de trabajo existen tareas que involucren citótaticos"]
[]
[null,"En el centro de trabajo se preparan de citostáticos"]
[]
[null,"En el centro de trabajado se administran citotáticos"]
[]
[null,"En el centro de trabajo se manejan residuos de citostaticos"]
[]
[null,"En el centro de trabajo hay otras tareas con exposición a citóstaticos"]
[]
[null,"CONCLUSIONES Y ACCIONES A SEGUIR"]
[null,{"$f":"+IFERROR(+SIP!C2,\" \")","v":"El centro de trabajo tiene el peligro de exposición a citostáticos en preparación, en administración y  en manejo de residuos. Debe realizar, anualmente, las evaluaciones cualitativas correspondientes, mediante la lista de chequeo establecida en el anexo N°1 del Protocolo. Una vez realizada cada evaluación, tiene 1 semana para enviarla a ACHS."}]
[]
[]
[null,null,null,null,null,null,null,"Nombre Firma Responsable Empresa"]
[null,null,null,null,null,null,null,"Cargo"]

{"sheet":"CARACTERIZACION","index":1,"n_rows":45,"n_cols":14,"rows_kept":45,"cut":false,"hidden":false,"merged":[[43,5,43,7],[44,5,44,7],[1,1,1,3],[2,2,2,6],[2,8,2,10],[4,2,4,6],[4,8,4,10],[30,1,31,1],[30,2,30,3],[30,4,30,5],[30,6,30,7],[30,8,30,9],[30,12,30,13],[3,8,3,10],[8,4,8,5],[12,3,12,10],[14,2,14,10],[16,9,16,10],[30,10,30,11],[6,2,6,6],[6,8,6,10]]}
[]
[null,"INFORMACIÓN GENERAL DEL CENTRO:"]
[null,"Razón Social:",null,null,null,null,null," Rut:"]
[null,"Establecimiento de Salud: ",null,"Público ","                        Privado ",null,null,"  Adulto","                 Infantil (<15 años)"]
[null,"Dirección: ",null,null,null,null,null,"Ciudad:"]
[]
[null,"Nombre Representante Legal:",null,null,null,null,null," Rut:"]
[]
[null,"N°Adherentes: ",null,"Fono: ",null,null,"e-mail :",null,null,"CAD⁴:"]
[]
[null,"Organismo Administrador Ley 16.744:",null,"       A.CH.S⁵",null,"I.S.T⁶","        I.S.L⁷","            Mutual de Seguridad   C.CH.C⁸",null,null,"             A.D.⁹"]
[]
[null,"Nombre Experto Prevención de Riesgos:"]
[]
[null,"Fono/e-mail:"]
[]
[null,"Presta Servicios U.C.P.¹⁰","                NO","                 SI","Compra Servicios:","NO","SI",null," ¿Dónde?"]
[]
[null,"Quimioterapia ambulatoria","                NO","                 SI","Quimioterapia hospitalizados:",null,"                NO","                 SI","Otra actividad:","                NO","                 SI"]
[]
[null,"4.- CAD: Cotización adicional diferenciada. D.S. N° 67/1999. Ministerio del Trabajo y Previsión Social; Subsecretaría de Previsión Social"]
[null,"5.- A.CH.S. : Asociación Chilena de Seguridad"]
[null,"6.- I.S.T. : Instituto de Seguridad del Trabajo"]
[null,"7.- I.S.T. : Instituto de Seguridad Laboral"]
[null,"8.- Mutual C.CH.C. : Mutual de Seguridad Cámara Chilena de la Construcción."]
[null,"9.- A.D. : Administración Delegada"]
[null,"10.- U.C.P. : Unidad Centralizada Preparados"]
[]
[]
[null,"En esta tabla coloque el número de trabajadores según actividad desarrollada"]
[null,"Actividad Unidad","Centralizada Preparados¹⁰\n(Farmacia)",null,"Quimioterapia\nambulatoria",null,"Quimioterapia\nHospitalizados",null,"Manejo de\nResiduos",null,"Otra área",null,"TOTAL"]
[null,null,"Hombres","Mujeres","Hombres","Mujeres","Hombres","Mujeres","Hombres","Mujeres","Hombres","Mujeres","Hombres","Mujeres"]
[null,"Químico Farmacéutico",null,null,null,null,null,null,null,null,null,null,{"$f":"+C33+E33+G33+I33+K33","v":0},{"$f":"+D33+F33+H33+J33+L33","v":0}]
[null,"Bioquímico",null,null,null,null,null,null,null,null,null,null,{"$f":"+C34+E34+G34+I34+K34","v":0},0]
[null,"TPM/TF",null,null,null,null,null,null,null,null,null,null,0,0]
[null,"Auxiliar Servicio",null,null,null,null,null,null,null,null,null,null,0,0]
[null,"Enfermero(a) Universitario(a)",null,null,null,null,null,null,null,null,null,null,0,0]
[null,"Matron(a)",null,null,null,null,null,null,null,null,null,null,0,0]
[null,"Médico",null,null,null,null,null,null,null,null,null,null,0,0]
[null,"Otra",null,null,null,null,null,null,null,null,null,null,0,0]
[null,"Total",null,null,null,null,null,null,null,null,null,null,0,0]
[]
[]
[null,null,null,null,null,"Nombre Firma Responsable Empresa"]
[null,null,null,null,null,"Cargo"]

{"sheet":"SIP","index":2,"n_rows":21,"n_cols":7,"rows_kept":21,"cut":false,"hidden":true,"merged":[]}
["LOGICA","RESULTADO","Frase Final","Busca",null,"Plural","Singular"]
[true,"El centro de trabajo tiene el peligro de exposición a citostáticos ",{"$f":"+IF(A2,B2,B3)&D2&E2","v":"El centro de trabajo tiene el peligro de exposición a citostáticos en preparación, en administración y  en manejo de residuos. Debe realizar, anualmente, las evaluaciones cualitativas correspondientes, mediante la lista de chequeo establecida en el anexo N°1 del Protocolo. Una vez realizada cada evaluación, tiene 1 semana para enviarla a ACHS."},{"$f":"+IF(+IFERROR(+VLOOKUP(+TRUE,C3:D21,2,FALSE),\"\")=0,\"\",+VLOOKUP(+TRUE,C3:D21,2,FALSE))","v":"en preparación, en administración y  en manejo de residuos"},{"$f":"+IF(A2=FALSE,\"\",+IF(A14>1,F2,G2))","v":". Debe realizar, anualmente, las evaluaciones cualitativas correspondientes, mediante la lista de chequeo establecida en el anexo N°1 del Protocolo. Una vez realizada cada evaluación, tiene 1 semana para enviarla a ACHS."},". Debe realizar, anualmente, las evaluaciones cualitativas correspondientes, mediante la lista de chequeo establecida en el anexo N°1 del Protocolo. Una vez realizada cada evaluación, tiene 1 semana para enviarla a ACHS.",". Debe realizar, anualmente, la evaluación cualitativa correspondiente, mediante la lista de chequeo establecida en el anexo N°1 del Protocolo. Una vez realizada la evaluación, tiene 1 semana para enviarla a ACHS."]
[false,"El centro de trabajo no tiene el peligro de exposición a citostáticos.",{"$f":"+AND(A3=TRUE,A4=FALSE,A5=FALSE,A6=FALSE)","v":false},null,1]
[true,"en preparación",{"$f":"+AND(A2=TRUE,A4=TRUE,A6=FALSE,A8=FALSE,A10=FALSE)","v":false},{"$f":"+B4","v":"en preparación"},1,1]
[false,null,{"$f":"+FALSE","v":false},{"$f":"+B5","v":0},1]
[true,"en administración",{"$f":"+AND(A2=TRUE,A4=FALSE,A6=TRUE,A8=FALSE,A10=FALSE)","v":false},{"$f":"+B6","v":"en administración"},1,1]
[false,null,{"$f":"+FALSE","v":false}]
[true," en manejo de residuos",{"$f":"+AND(A2=TRUE,A4=FALSE,A6=FALSE,A8=TRUE,A10=FALSE)","v":false},{"$f":"+B8","v":" en manejo de residuos"},null,1]
[false,null,{"$f":"+AND(A3=TRUE,A4=FALSE,A5=FALSE,A6=TRUE)","v":false}]
[false,{"$f":"+'IDENTIFICACION PELIGRO'!K26","v":0},{"$f":"+AND(A2=TRUE,A4=FALSE,A6=FALSE,A8=FALSE,A10=TRUE)","v":false},{"$f":"+IF(B10=\"Escriba aquí\",\"FALTA INGRESAR NOMBRE DE LA TAREA\",B10)","v":0},null,1]
[false,null,{"$f":"+AND(A2=TRUE,A4=TRUE,A6=TRUE,A8=FALSE,A10=FALSE)","v":false},{"$f":"+B4&\" y \"& B6","v":"en preparación y en administración"},2]
[false,null,{"$f":"+AND(A2=TRUE,A4=TRUE,A6=FALSE,A8=TRUE,A10=FALSE)","v":false},{"$f":"+B4&\" y \"&B8","v":"en preparación y  en manejo de residuos"},2]
[null,null,{"$f":"+AND(A2=TRUE,A4=TRUE,A6=FALSE,A8=FALSE,A10=TRUE)","v":false},{"$f":"+B4&\" y \"&IF(B10=\"Escriba aquí\",\"FALTA INGRESAR NOMBRE DE LA TAREA\",B10)","v":"en preparación y 0"},2]
[{"$f":"+COUNTIF(A4:A12,TRUE)","v":3},null,{"$f":"+AND(A2=TRUE,A4=FALSE,A6=TRUE,A8=TRUE,A10=FALSE)","v":false},{"$f":"+B6&\" y \"&B8","v":"en administración y  en manejo de residuos"},2]
[null,null,{"$f":"+AND(A2=TRUE,A4=FALSE,A6=TRUE,A8=FALSE,A10=TRUE)","v":false},{"$f":"+B6&\" y \"&IF(B10=\"Escriba aquí\",\"FALTA INGRESAR NOMBRE DE LA TAREA\",B10)","v":"en administración y 0"},2]
[null,null,{"$f":"+AND(A2=TRUE,A4=FALSE,A6=FALSE,A8=TRUE,A10=TRUE)","v":false},{"$f":"+B8&\" y  \"&IF(B10=\"Escriba aquí\",\"FALTA INGRESAR NOMBRE DE LA TAREA\",B10)","v":" en manejo de residuos y  0"},2]
[null,null,{"$f":"+AND(A2=TRUE,A4=TRUE,A6=TRUE,A8=TRUE,A10=FALSE)","v":true},{"$f":"+B4&\", \"&B6&\" y \"&B8","v":"en preparación, en administración y  en manejo de residuos"},3]
[null,null,{"$f":"+AND(A2=TRUE,A4=FALSE,A6=TRUE,A8=TRUE,A10=TRUE)","v":false},{"$f":"+B6&\", \"&B8&\" y \"&+IF(B10=\"Escriba aquí\",\"FALTA INGRESAR NOMBRE DE LA TAREA\",B10)","v":"en administración,  en manejo de residuos y 0"},3]
[null,null,{"$f":"+AND(A2=TRUE,A4=TRUE,A6=TRUE,A8=FALSE,A10=TRUE)","v":false},{"$f":"+B4&\", \"&B6&\" y \"&IF(B10=\"Escriba aquí\",\"FALTA INGRESAR NOMBRE DE LA TAREA\",B10)","v":"en preparación, en administración y 0"},3]
[null,null,{"$f":"+AND(A2=TRUE,A4=TRUE,A6=FALSE,A8=TRUE,A10=TRUE)","v":false},{"$f":"+B4&\", \"&B8&\" y \"&IF(B10=\"Escriba aquí\",\"FALTA INGRESAR NOMBRE DE LA TAREA\",B10)","v":"en preparación,  en manejo de residuos y 0"},3]
[null,null,{"$f":"+AND(A2=TRUE,A4=TRUE,A6=TRUE,A8=TRUE,A10=TRUE)","v":false},{"$f":"+B4&\", \"&B6&\", \"&B8&\" y \"&+IF(B10=\"Escriba aquí\",\"FALTA INGRESAR NOMBRE DE LA TAREA\",B10)","v":"en preparación, en administración,  en manejo de residuos y 0"},4]

{"sheet":"SIPC","index":3,"n_rows":20,"n_cols":1,"rows_kept":20,"cut":false,"hidden":true,"merged":[]}
["Logica"]
[true]
[true]
[true]
[false]
[true]
[true]
[true]
[true]
[true]
[true]
[true]
[true]
[true]
[true]
[false]
[false]
[false]
[false]
[false]